lending/lending_fUSD_20250224
["ID","MTS","AMOUNT","RATE_DAILY","PERIOD"]
[354261547,1740370270659,-506.69,0.00017178,2]
[354261548,1740370270670,-1299.46,0.00017178,2]
[354261549,1740370270680,-500.0,0.00017178,2]
[354261550,1740370270689,-500.0,0.00017178,2]
[354261551,1740370270698,-529.88,0.00017178,2]
[354261552,1740370270708,-603.32,0.00017178,2]
[354261553,1740370270718,-2279.4,0.00017178,2]
[354261554,1740370270727,-500.0,0.00017178,2]
[354261555,1740370270737,-1087.58,0.00017178,2]
[354261556,1740370270747,-1355.43,0.00017178,2]
[354261557,1740370270757,-1419.3,0.00017178,2]
[354261558,1740370270767,-1326.58,0.00017178,2]
[354261559,1740370270777,-990.6,0.00017178,2]
[354261560,1740370270787,-518.6,0.00017178,2]
[354261561,1740370270796,-1927.97,0.00017178,2]
[354261562,1740370270805,-1147.32,0.00017178,2]
[354261563,1740370270815,-1418.58,0.00017178,2]
[354261564,1740370270824,-500.0,0.00017178,2]
[354261565,1740370270833,-881.04,0.00017178,2]
[354261566,1740370270842,-468.64993077,0.00017178,2]
[354261567,1740370270852,-2363.12,0.00017178,2]
[354261568,1740370270862,-2242.46,0.00017178,2]
[354261569,1740370270871,-500.0,0.00017178,2]
[354261570,1740370270881,-500.0,0.00017178,2]
[354261571,1740370270890,-348.81082134,0.00017178,2]
[354261572,1740370270900,-1062.87,0.00017178,2]
[354261573,1740370270909,-618.22,0.00017178,2]
[354261574,1740370270920,-2156.86,0.00017178,2]
[354261575,1740370270930,-1442.62,0.00017178,2]
[354261576,1740370270940,-834.42,0.00017178,2]
[354261577,1740370270949,-2002.34,0.00017178,2]
[354261578,1740370270959,-693.2,0.00017178,2]
[354261579,1740370270968,-1463.93,0.00017178,2]
[354261580,1740370270978,-1507.75,0.00017178,2]
[354261581,1740370270987,-1055.17,0.00017178,2]
[354261582,1740370270997,-590.46,0.00017178,2]
[354261583,1740370271007,-731.62,0.00017178,2]
[354261584,1740370271016,-1951.74,0.00017178,2]
[354261585,1740370271026,-1780.85,0.00017178,2]
[354261586,1740370271035,-500.0,0.00017178,2]
[354261587,1740370271045,-500.0,0.00017178,2]
[354261588,1740370271054,-11267.85,0.00017178,2]
[354261589,1740370271063,-582.35,0.00017178,2]
[354261590,1740370271076,-822.47,0.00017178,2]
[354261591,1740370271085,-773.02,0.00017178,2]
[354261592,1740370271096,-2054.61,0.00017178,2]
[354261593,1740370271106,-1628.62,0.00017178,2]
[354261594,1740370271118,-599.87,0.00017178,2]
[354261595,1740370271128,-3117.91,0.00017178,2]
[354261596,1740370271137,-4818.73,0.00017178,2]
[354261597,1740370271147,-655.46,0.00017178,2]
[354261598,1740370271157,-5552.05,0.00017178,2]
[354261599,1740370271170,-500.0,0.00017178,2]
[354261600,1740370271180,-1407.53,0.00017178,2]
[354261601,1740370271189,-1303.65,0.00017178,2]
[354261602,1740370271199,-2523.47,0.00017178,2]
[354261603,1740370271209,-1935.81,0.00017178,2]
[354261604,1740370271219,-1791.53,0.00017178,2]
[354261605,1740370271228,-1194.26,0.00017178,2]
[354261606,1740370271238,-151.0,0.00017178,2]
[354261607,1740370271249,-445.283686,0.00017178,2]
[354261608,1740370271259,-3040.22,0.00017178,2]
[354261609,1740370271268,-555.36,0.00017178,2]
[354261610,1740370271277,-2447.95,0.00017178,2]
[354261611,1740370271287,-778.73,0.00017178,2]
[354261612,1740370271298,-445.283686,0.00017178,2]
[354261613,1740370271308,-2805.33,0.00017178,2]
[354261614,1740370271318,-1830.49,0.00017178,2]
[354261615,1740370271328,-1963.82,0.00017178,2]
[354261616,1740370271338,-1465.42,0.00017178,2]
[354261617,1740370271348,-3178.28,0.00017178,2]
[354261618,1740370271358,-3050.1,0.00017178,2]
[354261619,1740370271368,-1928.5,0.00017178,2]
[354261620,1740370271378,-1941.07,0.00017178,2]
[354261621,1740370271388,-748.66,0.00017178,2]
[354261622,1740370271397,-500.0,0.00017178,2]
[354261623,1740370271407,-1478.69,0.00017178,2]
[354261624,1740370271420,-2173.14,0.00017178,2]
[354261625,1740370271429,-3736.47,0.00017178,2]
[354261626,1740370271439,-1220.36,0.00017178,2]
[354261627,1740370271449,-500.0,0.00017178,2]
[354261628,1740370271459,-1666.17,0.00017178,2]
[354261629,1740370271468,-2977.97,0.00017178,2]
[354261630,1740370271478,-1017.67,0.00017178,2]
[354261631,1740370271488,-1640.63,0.00017178,2]
[354261632,1740370271498,-6338.02,0.00017178,2]
[354261633,1740370271507,-2867.15,0.00017178,2]
[354261634,1740370271518,-841.89,0.00017178,2]
[354261635,1740370271528,-500.0,0.00017178,2]
[354261636,1740370271538,-2143.08,0.00017178,2]
[354261637,1740370271549,-606.77753868,0.00017178,2]
[354261638,1740370271559,-2766.52,0.00017178,2]
[354261639,1740370271570,-931.52,0.00017178,2]
[354261640,1740370271580,-500.0,0.00017178,2]
[354261641,1740370271590,-549.15,0.00017178,2]
[354261642,1740370271600,-500.0,0.00017178,2]
[354261643,1740370271615,-2546.08,0.00017178,2]
[354261644,1740370271625,-500.0,0.00017178,2]
[354261645,1740370271635,-1331.74,0.00017178,2]
[354261646,1740370271645,-1142.48,0.00017178,2]
[354261647,1740370271654,-1700.65,0.00017178,2]
[354261648,1740370271664,-1357.58,0.00017178,2]
[354261649,1740370271675,-500.0,0.00017178,2]
[354261650,1740370271686,-2422.92,0.00017178,2]
[354261651,1740370271696,-3135.47,0.00017178,2]
[354261652,1740370271706,-1200.83,0.00017178,2]
[354261653,1740370271716,-1256.88,0.00017178,2]
[354261654,1740370271726,-985.51,0.00017178,2]
[354261655,1740370271739,-2703.34,0.00017178,2]
[354261656,1740370271750,-1243.49,0.00017178,2]
[354261657,1740370271759,-500.0,0.00017178,2]
[354261658,1740370271769,-2741.9,0.00017178,2]
[354261659,1740370271779,-3475.77,0.00017178,2]
[354261660,1740370271789,-2863.31,0.00017178,2]
[354261661,1740370271798,-807.12,0.00017178,2]
[354261662,1740370271808,-2094.5,0.00017178,2]
[354261663,1740370271818,-1429.41,0.00017178,2]
[354261664,1740370271827,-656.42,0.00017178,2]
[354261665,1740370271837,-1109.03,0.00017178,2]
[354261666,1740370271847,-3155.01,0.00017178,2]
[354261667,1740370271857,-1836.26,0.00017178,2]
[354261668,1740370271868,-2861.82,0.00017178,2]
[354261669,1740370272094,-1222.45,0.00017178,2]
[354261670,1740370272103,-1059.77,0.00017178,2]
[354261671,1740370272113,-1881.25,0.00017178,2]
[354261672,1740370272123,-2516.19,0.00017178,2]
[354261673,1740370272132,-1026.41,0.00017178,2]
[354261674,1740370272142,-500.0,0.00017178,2]
[354261675,1740370272153,-1687.26,0.00017178,2]
[354261676,1740370272162,-1040.13,0.00017178,2]
[354261677,1740370272174,-990.37,0.00017178,2]
[354261678,1740370272183,-1952.17,0.00017178,2]
[354261679,1740370272193,-3199.22,0.00017178,2]
[354261680,1740370272203,-1386.4,0.00017178,2]
[354261681,1740370272212,-1126.95,0.00017178,2]
[354261682,1740370272222,-2480.34,0.00017178,2]
[354261683,1740370272231,-2631.9,0.00017178,2]
[354261684,1740370272240,-572.26,0.00017178,2]
[354261685,1740370272250,-4039.48,0.00017178,2]
[354261686,1740370272260,-3534.61,0.00017178,2]
[354261687,1740370272270,-423.56101423,0.00017178,2]
[354261688,1740370272279,-3523.63,0.00017178,2]
[354261689,1740370272288,-1787.16,0.00017178,2]
[354261690,1740370272298,-1888.6,0.00017178,2]
[354261691,1740370272309,-9640.15,0.00017178,2]
[354261692,1740370272318,-500.0,0.00017178,2]
[354261693,1740370272328,-2409.95,0.00017178,2]
[354261694,1740370272337,-2352.02,0.00017178,2]
[354261695,1740370272347,-500.0,0.00017178,2]
[354261696,1740370272357,-1485.16,0.00017178,2]
[354261697,1740370272366,-811.15,0.00017178,2]
[354261698,1740370272376,-500.0,0.00017178,2]
[354261699,1740370272385,-583.37,0.00017178,2]
[354261700,1740370272394,-2357.84,0.00017178,2]
[354261701,1740370272404,-739.0,0.00017178,2]
[354261702,1740370272414,-4243.19,0.00017178,2]
[354261703,1740370272426,-709.38,0.00017178,2]
[354261704,1740370272436,-1367.15,0.00017178,2]
[354261705,1740370272446,-3442.95,0.00017178,2]
[354261706,1740370272457,-2307.0,0.00017178,2]
[354261707,1740370272466,-853.06,0.00017178,2]
[354261708,1740370272476,-500.0,0.00017178,2]
[354261709,1740370272486,-200.0,0.0001718,2]
[354261710,1740370272495,-204.0,0.0001718,2]
[354261711,1740370272506,-1597.48,0.00017202,2]
[354261712,1740370272516,-503.50819815,0.00017221,2]
[354261713,1740370272527,-1413.76,0.00017231,2]
[354261714,1740370272538,-269.31005074,0.00017234,2]
[354261715,1740370272548,-393.58692553,0.00017259,2]
[354261716,1740370272558,-708.07,0.00017259,2]
[354261717,1740370272568,-931.01,0.0001726,2]
[354261718,1740370272579,-500.0,0.0001726,2]
[354261719,1740370272589,-538.99395,0.0001726,2]
[354261720,1740370272599,-586.522083,0.0001726,2]
[354261721,1740370272608,-654.56,0.0001726,2]
[354261722,1740370272618,-561.51,0.0001726,2]
[354261723,1740370272627,-178.76644627,0.0001726,2]
[354261724,1740370272637,-500.0,0.0001726,2]
[354261725,1740370272646,-500.0,0.0001726,2]
[354261726,1740370272655,-632.37,0.0001726,2]
[354261727,1740370272665,-500.0,0.0001726,2]
[354261728,1740370272676,-500.0,0.0001726,2]
[354261729,1740370272685,-500.0,0.0001726,2]
[354261730,1740370272695,-500.0,0.0001726,2]
[354261731,1740370272704,-500.0,0.0001726,2]
[354261732,1740370272713,-536.73,0.0001726,2]
[354261733,1740370272722,-500.0,0.0001726,2]
[354261734,1740370272732,-500.0,0.0001726,2]
[354261735,1740370272742,-500.0,0.0001726,2]
[354261736,1740370272751,-565.79,0.0001726,2]
[354261737,1740370272760,-585.43,0.0001726,2]
[354261738,1740370272770,-674.94,0.0001726,2]
[354261739,1740370272779,-500.0,0.0001726,2]
[354261740,1740370272788,-745.66,0.0001726,2]
[354261741,1740370272797,-699.72,0.0001726,2]
[354261742,1740370272807,-473.01352748,0.0001726,2]
[354261743,1740370272816,-1904.22,0.0001726,2]
[354261744,1740370272825,-526.35,0.0001726,2]
[354261745,1740370272834,-500.0,0.0001726,2]
[354261746,1740370272843,-1002.13,0.0001726,2]
[354261747,1740370272853,-1134.15,0.0001726,2]
[354261748,1740370272862,-500.0,0.0001726,2]
[354261749,1740370272872,-571.09,0.0001726,2]
[354261750,1740370272881,-553.86,0.0001726,2]
[354261751,1740370272891,-1052.61,0.0001726,2]
[354261752,1740370272900,-850.74,0.0001726,2]
[354261753,1740370272910,-1131.97,0.0001726,2]
[354261754,1740370272920,-500.0,0.0001726,2]
[354261755,1740370272930,-899.17,0.0001726,2]
[354261756,1740370272939,-500.0,0.0001726,2]
[354261757,1740370272949,-787.33,0.0001726,2]
[354261758,1740370272958,-500.0,0.0001726,2]
[354261759,1740370272968,-1272.39,0.0001726,2]
[354261760,1740370272977,-500.0,0.0001726,2]
[354261761,1740370272987,-769.41,0.0001726,2]
[354261762,1740370272996,-891.59,0.0001726,2]
[354261763,1740370273005,-500.0,0.0001726,2]
[354261764,1740370273015,-746.3,0.0001726,2]
[354261765,1740370273025,-512.65,0.0001726,2]
[354261766,1740370273035,-1139.12,0.0001726,2]
[354261767,1740370273044,-629.92,0.0001726,2]
[354261768,1740370273053,-1166.53,0.0001726,2]
[354261769,1740370273063,-500.0,0.0001726,2]
[354261770,1740370273073,-500.0,0.0001726,2]
[354261771,1740370273085,-500.0,0.0001726,2]
[354261772,1740370273095,-654.42,0.0001726,2]
[354261773,1740370273105,-620.82,0.0001726,2]
[354261774,1740370273114,-500.0,0.0001726,2]
[354261775,1740370273125,-682.77,0.0001726,2]
[354261776,1740370273134,-589.28,0.0001726,2]
[354261777,1740370273144,-500.0,0.0001726,2]
[354261778,1740370273154,-500.0,0.0001726,2]
[354261779,1740370273164,-677.74,0.0001726,2]
[354261780,1740370273175,-500.0,0.0001726,2]
[354261781,1740370273184,-500.0,0.0001726,2]
[354261782,1740370273194,-500.0,0.0001726,2]
[354261783,1740370273203,-515.59,0.0001726,2]
[354261784,1740370273213,-500.0,0.0001726,2]
[354261785,1740370273222,-500.0,0.0001726,2]
[354261786,1740370273231,-973.07,0.0001726,2]
[354261787,1740370273240,-531.07,0.0001726,2]
[354261788,1740370273250,-614.59,0.0001726,2]
[354261789,1740370273259,-673.96,0.0001726,2]
[354261790,1740370273268,-500.0,0.0001726,2]
[354261791,1740370273277,-545.54,0.0001726,2]
[354261792,1740370273287,-500.0,0.0001726,2]
[354261793,1740370273296,-500.0,0.0001726,2]
[354261794,1740370273306,-546.89,0.0001726,2]
[354261795,1740370273315,-583.18,0.0001726,2]
[354261796,1740370273325,-882.41,0.0001726,2]
[354261797,1740370273335,-500.0,0.0001726,2]
[354261798,1740370273344,-500.0,0.0001726,2]
[354261799,1740370273353,-502.84,0.0001726,2]
[354261800,1740370273363,-500.0,0.0001726,2]
[354261801,1740370273373,-576.49,0.0001726,2]
[354261802,1740370273383,-500.0,0.0001726,2]
[354261803,1740370273391,-500.0,0.0001726,2]
[354261804,1740370273401,-768.2,0.0001726,2]
[354261805,1740370273410,-500.0,0.0001726,2]
[354261806,1740370273421,-556.67,0.0001726,2]
[354261807,1740370273431,-500.0,0.0001726,2]
[354261808,1740370273442,-781.2,0.0001726,2]
[354261809,1740370273453,-992.75,0.0001726,2]
[354261810,1740370273463,-845.58,0.0001726,2]
[354261811,1740370273474,-822.7,0.0001726,2]
[354261812,1740370273485,-519.67,0.0001726,2]
[354261813,1740370273496,-506.17,0.0001726,2]
[354261814,1740370273506,-1117.0,0.0001726,2]
[354261815,1740370273516,-500.0,0.0001726,2]
[354261816,1740370273526,-611.16,0.0001726,2]
[354261817,1740370273536,-500.0,0.0001726,2]
[354261818,1740370273546,-500.0,0.0001726,2]
[354261819,1740370273556,-500.0,0.0001726,2]
[354261820,1740370273566,-1226.43,0.0001726,2]
[354261821,1740370273576,-890.12,0.0001726,2]
[354261822,1740370273586,-887.69,0.0001726,2]
[354261823,1740370273597,-500.0,0.0001726,2]
[354261824,1740370273607,-690.76,0.0001726,2]
[354261825,1740370273618,-689.31,0.0001726,2]
[354261826,1740370273627,-595.43,0.0001726,2]
[354261827,1740370273637,-500.0,0.0001726,2]
[354261828,1740370273647,-500.0,0.0001726,2]
[354261829,1740370273658,-929.89,0.0001726,2]
[354261830,1740370273668,-500.0,0.0001726,2]
[354261831,1740370273678,-688.58,0.0001726,2]
[354261832,1740370273687,-500.0,0.0001726,2]
[354261833,1740370273697,-518.85,0.0001726,2]
[354261834,1740370273707,-500.0,0.0001726,2]
[354261835,1740370273716,-783.77,0.0001726,2]
[354261836,1740370273726,-627.66,0.0001726,2]
[354261837,1740370273735,-500.0,0.0001726,2]
[354261838,1740370273745,-1124.15,0.0001726,2]
[354261839,1740370273755,-489.60446892,0.0001726,2]
[354261840,1740370273765,-500.0,0.0001726,2]
[354261841,1740370273774,-500.0,0.0001726,2]
[354261842,1740370273783,-500.0,0.0001726,2]
[354261843,1740370273792,-648.07,0.0001726,2]
[354261844,1740370273801,-742.83,0.0001726,2]
[354261845,1740370273810,-544.47,0.0001726,2]
[354261846,1740370273819,-538.11,0.0001726,2]
[354261847,1740370273829,-606.9,0.0001726,2]
[354261848,1740370273838,-761.19,0.0001726,2]
[354261849,1740370273847,-942.27,0.0001726,2]
[354261850,1740370273857,-500.0,0.0001726,2]
[354261851,1740370273866,-1119.02,0.0001726,2]
[354261852,1740370273876,-719.34,0.0001726,2]
[354261853,1740370273886,-604.42,0.0001726,2]
[354261854,1740370273897,-500.0,0.0001726,2]
[354261855,1740370273907,-531.87,0.0001726,2]
[354261856,1740370273917,-985.74,0.0001726,2]
[354261857,1740370273927,-955.59,0.0001726,2]
[354261858,1740370273938,-506.69,0.0001726,2]
[354261859,1740370273948,-1299.46,0.0001726,2]
[354261860,1740370273959,-500.0,0.0001726,2]
[354261861,1740370273969,-500.0,0.0001726,2]
[354261862,1740370273979,-529.88,0.0001726,2]
[354261863,1740370273990,-603.32,0.0001726,2]
[354261864,1740370274001,-2279.4,0.0001726,2]
[354261865,1740370274011,-500.0,0.0001726,2]
[354261866,1740370274021,-1087.58,0.0001726,2]
[354261867,1740370274032,-1355.43,0.0001726,2]
[354261868,1740370274042,-1419.3,0.0001726,2]
[354261869,1740370274052,-1326.58,0.0001726,2]
[354261870,1740370274062,-990.6,0.0001726,2]
[354261871,1740370274074,-518.6,0.0001726,2]
[354261872,1740370274086,-1927.97,0.0001726,2]
[354261873,1740370274096,-1147.32,0.0001726,2]
[354261874,1740370274106,-1418.58,0.0001726,2]
[354261875,1740370274117,-500.0,0.0001726,2]
[354261876,1740370274127,-881.04,0.0001726,2]
[354261877,1740370274136,-2363.12,0.0001726,2]
[354261878,1740370274146,-2242.46,0.0001726,2]
[354261879,1740370274157,-500.0,0.0001726,2]
[354261880,1740370274167,-500.0,0.0001726,2]
[354261881,1740370274178,-1062.87,0.0001726,2]
[354261882,1740370274188,-618.22,0.0001726,2]
[354261883,1740370274198,-1442.62,0.0001726,2]
[354261884,1740370274208,-2156.86,0.0001726,2]
[354261885,1740370274218,-834.42,0.0001726,2]
[354261886,1740370274228,-2002.34,0.0001726,2]
[354261887,1740370274236,-693.2,0.0001726,2]
[354261888,1740370274247,-1463.93,0.0001726,2]
[354261889,1740370274258,-1507.75,0.0001726,2]
[354261890,1740370274268,-1055.17,0.0001726,2]
[354261891,1740370274277,-590.46,0.0001726,2]
[354261892,1740370274287,-731.62,0.0001726,2]
[354261893,1740370274297,-1951.74,0.0001726,2]
[354261894,1740370274307,-1780.85,0.0001726,2]
[354261895,1740370274316,-500.0,0.0001726,2]
[354261896,1740370274325,-500.0,0.0001726,2]
[354261897,1740370274336,-11267.85,0.0001726,2]
[354261898,1740370274345,-582.35,0.0001726,2]
[354261899,1740370274355,-822.47,0.0001726,2]
[354261900,1740370274365,-773.02,0.0001726,2]
[354261901,1740370274375,-2054.61,0.0001726,2]
[354261902,1740370274386,-1628.62,0.0001726,2]
[354261903,1740370274396,-599.87,0.0001726,2]
[354261904,1740370274406,-3117.91,0.0001726,2]
[354261905,1740370274417,-4818.73,0.0001726,2]
[354261906,1740370274428,-655.46,0.0001726,2]
[354261907,1740370274501,-5552.05,0.0001726,2]
[354261908,1740370274511,-500.0,0.0001726,2]
[354261909,1740370274520,-1407.53,0.0001726,2]
[354261910,1740370274530,-1303.65,0.0001726,2]
[354261911,1740370274540,-2523.47,0.0001726,2]
[354261912,1740370274551,-1935.81,0.0001726,2]
[354261913,1740370274562,-1791.53,0.0001726,2]
[354261914,1740370274572,-1194.26,0.0001726,2]
[354261915,1740370274582,-3040.22,0.0001726,2]
[354261916,1740370274591,-555.36,0.0001726,2]
[354261917,1740370274601,-2447.95,0.0001726,2]
[354261918,1740370274611,-778.73,0.0001726,2]
[354261919,1740370274621,-2805.33,0.0001726,2]
[354261920,1740370274631,-1830.49,0.0001726,2]
[354261921,1740370274641,-1963.82,0.0001726,2]
[354261922,1740370274651,-3178.28,0.0001726,2]
[354261923,1740370274660,-1465.42,0.0001726,2]
[354261924,1740370274671,-3050.1,0.0001726,2]
[354261925,1740370274682,-1928.5,0.0001726,2]
[354261926,1740370274692,-1941.07,0.0001726,2]
[354261927,1740370274701,-748.66,0.0001726,2]
[354261928,1740370274711,-500.0,0.0001726,2]
[354261929,1740370274720,-1478.69,0.0001726,2]
[354261930,1740370274730,-2173.14,0.0001726,2]
[354261931,1740370274740,-3736.47,0.0001726,2]
[354261932,1740370274749,-1220.36,0.0001726,2]
[354261933,1740370274759,-644.31,0.0001726,2]
[354261934,1740370274768,-1666.17,0.0001726,2]
[354261935,1740370274778,-2977.97,0.0001726,2]
[354261936,1740370274787,-1017.67,0.0001726,2]
[354261937,1740370274797,-1640.63,0.0001726,2]
[354261938,1740370274806,-6338.02,0.0001726,2]
[354261939,1740370274815,-2867.15,0.0001726,2]
[354261940,1740370274824,-841.89,0.0001726,2]
[354261941,1740370274833,-500.0,0.0001726,2]
[354261942,1740370274842,-2143.08,0.0001726,2]
[354261943,1740370274851,-2766.52,0.0001726,2]
[354261944,1740370274861,-931.52,0.0001726,2]
[354261945,1740370274870,-500.0,0.0001726,2]
[354261946,1740370274880,-549.15,0.0001726,2]
[354261947,1740370274889,-500.0,0.0001726,2]
[354261948,1740370274899,-2546.08,0.0001726,2]
[354261949,1740370274908,-500.0,0.0001726,2]
[354261950,1740370274917,-1331.74,0.0001726,2]
[354261951,1740370274927,-1142.48,0.0001726,2]
[354261952,1740370274936,-1700.65,0.0001726,2]
[354261953,1740370274945,-1357.58,0.0001726,2]
[354261954,1740370274955,-194.65931406,0.0001726,2]
[354261955,1740370274964,-2422.92,0.0001726,2]
[354261956,1740370274973,-3135.47,0.0001726,2]
[354261957,1740370274982,-1200.83,0.0001726,2]
[354261958,1740370274991,-1256.88,0.0001726,2]
[354261959,1740370275001,-985.51,0.0001726,2]
[354261960,1740370275011,-2703.34,0.0001726,2]
[354261961,1740370275021,-1243.49,0.0001726,2]
[354261962,1740370275030,-500.0,0.0001726,2]
[354261963,1740370275039,-2741.9,0.0001726,2]
[354261964,1740370275048,-3475.77,0.0001726,2]
[354261965,1740370275058,-2863.31,0.0001726,2]
[354261966,1740370275067,-807.12,0.0001726,2]
[354261967,1740370275079,-2094.5,0.0001726,2]
[354261968,1740370275088,-1429.41,0.0001726,2]
[354261969,1740370275098,-656.42,0.0001726,2]
[354261970,1740370275107,-1109.03,0.0001726,2]
[354261971,1740370275116,-3155.01,0.0001726,2]
[354261972,1740370275126,-1836.26,0.0001726,2]
[354261973,1740370275135,-2861.82,0.0001726,2]
[354261974,1740370275145,-1222.45,0.0001726,2]
[354261975,1740370275154,-1059.77,0.0001726,2]
[354261976,1740370275163,-1881.25,0.0001726,2]
[354261977,1740370275173,-2516.19,0.0001726,2]
[354261978,1740370275184,-1026.41,0.0001726,2]
[354261979,1740370275193,-500.0,0.0001726,2]
[354261980,1740370275203,-1687.26,0.0001726,2]
[354261981,1740370275213,-1040.13,0.0001726,2]
[354261982,1740370275222,-990.37,0.0001726,2]
[354261983,1740370275231,-1952.17,0.0001726,2]
[354261984,1740370275239,-3199.22,0.0001726,2]
[354261985,1740370275250,-1386.4,0.0001726,2]
[354261986,1740370275259,-1126.95,0.0001726,2]
[354261987,1740370275269,-2480.34,0.0001726,2]
[354261988,1740370275278,-2631.9,0.0001726,2]
[354261989,1740370275287,-572.26,0.0001726,2]
[354261990,1740370275296,-4039.48,0.0001726,2]
[354261991,1740370275305,-3534.61,0.0001726,2]
[354261992,1740370275314,-3523.63,0.0001726,2]
[354261993,1740370275323,-1787.16,0.0001726,2]
[354261994,1740370275332,-1888.6,0.0001726,2]
[354261995,1740370275340,-9640.15,0.0001726,2]
[354261996,1740370275350,-500.0,0.0001726,2]
[354261997,1740370275359,-2409.95,0.0001726,2]
[354261998,1740370275369,-2352.02,0.0001726,2]
[354261999,1740370275377,-500.0,0.0001726,2]
[354262000,1740370275386,-1485.16,0.0001726,2]
[354262001,1740370275395,-811.15,0.0001726,2]
[354262002,1740370275404,-500.0,0.0001726,2]
[354262003,1740370275413,-583.37,0.0001726,2]
[354262004,1740370275422,-2357.84,0.0001726,2]
[354262005,1740370275431,-4243.19,0.0001726,2]
[354262006,1740370275440,-739.0,0.0001726,2]
[354262007,1740370275449,-709.38,0.0001726,2]
[354262008,1740370275459,-1367.15,0.0001726,2]
[354262009,1740370275469,-3442.95,0.0001726,2]
[354262010,1740370275477,-2307.0,0.0001726,2]
[354262011,1740370275486,-853.06,0.0001726,2]
[354262012,1740370275495,-500.0,0.0001726,2]
[354262013,1740370275504,-1200.0,0.0001727,2]
[354262014,1740370275513,-702.50315991,0.0001727,2]
[354262015,1740370275522,-175.004175,0.00017317,2]
[354262016,1740370275531,-1000.0,0.00017318,2]
[354262017,1740370275540,-800.80760445,0.00017324,2]
[354262018,1740370275549,-1040.5410435,0.0001733,2]
[354262019,1740370275559,-708.07,0.00017341,2]
[354262020,1740370275568,-708.07,0.00017341,2]
[354262021,1740370275578,-708.07,0.00017341,2]
[354262022,1740370275587,-708.07,0.00017341,2]
[354262023,1740370275596,-708.07,0.00017341,2]
[354262024,1740370275605,-708.20100412,0.00017341,2]
[354262025,1740370275614,-567.68,0.00017342,2]
[354262026,1740370275623,-931.01,0.00017342,2]
[354262027,1740370275632,-500.0,0.00017342,2]
[354262028,1740370275641,-538.99395,0.00017342,2]
[354262029,1740370275651,-586.522083,0.00017342,2]
[354262030,1740370275659,-654.56,0.00017342,2]
[354262031,1740370275668,-561.51,0.00017342,2]
[354262032,1740370275677,-500.0,0.00017342,2]
[354262033,1740370275686,-500.0,0.00017342,2]
[354262034,1740370275695,-632.37,0.00017342,2]
[354262035,1740370275704,-500.0,0.00017342,2]
[354262036,1740370275713,-500.0,0.00017342,2]
[354262037,1740370275721,-500.0,0.00017342,2]
[354262038,1740370275730,-500.0,0.00017342,2]
[354262039,1740370275739,-500.0,0.00017342,2]
[354262040,1740370275748,-536.73,0.00017342,2]
[354262041,1740370275757,-500.0,0.00017342,2]
[354262042,1740370275766,-500.0,0.00017342,2]
[354262043,1740370275775,-500.0,0.00017342,2]
[354262044,1740370275784,-565.79,0.00017342,2]
[354262045,1740370275793,-585.43,0.00017342,2]
[354262046,1740370275802,-674.94,0.00017342,2]